[Event "94th FRA-ch Veterans 2019"]
[Site "Chartres"]
[Date "2019.08.20"]
[Round "4.2"]
[White "Goldenberg, Richard"]
[Black "Basic, Bosko"]
[Result "1/2-1/2"]
[ECO "A14"]
[WhiteElo "2219"]
[BlackElo "1986"]
[Annotator "NA"]
[PlyCount "70"]
[EventDate "2019.08.17"]
[EventType "swiss"]
[EventCountry "FRA"]
[SourceTitle "playchess.com"]
[Source "ChessBase"]
[SourceQuality "1"]
[TimeControl "40/5400+30:1800+30"]

1. c4 {[%emt 0:00:00]} e6 {[%emt 0:00:00]} 2. Nf3 {[%emt 0:00:00]} Nf6 {[%emt 0:00:00]} 3. b3 {[%emt 0:00:47]} b6 {[%emt 0:01:00]} 4. g3 {[%emt 0:02:35]} Bb7 {[%emt 0:00:29]} 5. Bg2 {[%emt 0:00:02]} d5 {[%emt 0:00:38]} 6. Bb2 {[%emt 0:01:04]} Nbd7 {[%emt 0:01:32]} 7. O-O {[%emt 0:00:41]} Be7 {[%emt 0:01:01]} 8. Nc3 {[%emt 0:04:16]} O-O {[%emt 0:00:49]} 9. e3 {[%emt 0:05:49]} Nc5 {[%emt 0:04:59]} 10. d4 {[%emt 0:03:01]} Nce4 {[%emt 0:02:31]} 11. Rc1 {[%emt 0:10:50]} Nxc3 {[%emt 0:02:57]} 12. Rxc3 {[%emt 0:00:37]} Ne4 {[%emt 0:02:22]} 13. Rc2 {[%emt 0:00:19]} Bf6 {[%emt 0:01:50]} 14. Nd2 {[%emt 0:02:55]} c5 {[%emt 0:10:38]} 15. Nxe4 {[%emt 0:03:48]} dxe4 {[%emt 0:00:12]} 16. Rd2 {[%emt 0:01:26]} Qc7 {[%emt 0:08:09]} 17. Qc2 {[%emt 0:03:56]} cxd4 {[%emt 0:04:21]} 18. exd4 {[%emt 0:03:20]} Bg5 {[%emt 0:02:45]} 19. Re2 {[%emt 0:02:55]} f5 {[%emt 0:00:44]} 20. f3 {[%emt 0:11:55]} exf3 {[%emt 0:11:28]} 21. Bxf3 {[%emt 0:00:03]} Bxf3 {[%emt 0:00:16]} 22. Rxf3 {[%emt 0:00:02]} Qc6 {[%emt 0:01:43]} 23. Qd3 {[%emt 0:02:23]} Rad8 {[%emt 0:03:35]} 24. Rf1 {[%emt 0:04:22]} Bf6 {[%emt 0:02:13]} 25. Qe3 {[%emt 0:04:17]} Rfe8 {[%emt 0:01:51]} 26. Rfe1 {[%emt 0:01:03]} Qd7 {[%emt 0:02:29]} 27. Rd1 {[%emt 0:04:54]} Qc6 {[%emt 0:02:39]} 28. Rde1 {[%emt 0:00:20]} Qd7 {[%emt 0:00:19]} 29. Rd1 {[%emt 0:00:52]} Qc6 {[%emt 0:00:12]} 30. a4 {[%emt 0:04:39]} h6 {[%emt 0:01:07]} 31. Rde1 {[%emt 0:00:41]} Qd7 {[%emt 0:00:36]} 32. Rd1 {[%emt 0:00:44]} Qc6 {[%emt 0:01:02]} 33. Rde1 {[%emt 0:00:42]} Qd7 {[%emt 0:00:41]} 34. Rd1 {[%emt 0:00:41]} Qc6 {[%emt 0:00:19]} 35. Rde1 {[%emt 0:03:42]} Qd7 {[%emt 0:00:27]} 1/2-1/2

[Event "94th FRA-ch Veterans 2019"]
[Site "Chartres"]
[Date "2019.08.20"]
[Round "4.3"]
[White "Salvaing, Jean-Louis"]
[Black "Dussol, Pierre"]
[Result "0-1"]
[ECO "D01"]
[WhiteElo "1878"]
[BlackElo "2102"]
[Annotator "NA"]
[PlyCount "84"]
[EventDate "2019.08.17"]
[EventType "swiss"]
[EventCountry "FRA"]
[SourceTitle "playchess.com"]
[Source "ChessBase"]
[SourceQuality "1"]
[TimeControl "40/5400+30:1800+30"]

1. d4 {[%emt 0:00:00]} Nf6 {[%emt 0:01:07]} 2. Nc3 {[%emt 0:02:17]} d5 {[%emt 0:02:36]} 3. Bg5 {[%emt 0:00:38]} Nbd7 {[%emt 0:03:37]} 4. Nf3 {[%emt 0:00:56]} e6 {[%emt 0:02:29]} 5. a3 {[%emt 0:01:17]} Be7 {[%emt 0:02:11]} 6. e3 {[%emt 0:00:24]} O-O {[%emt 0:02:07]} 7. Bd3 {[%emt 0:00:22]} b6 {[%emt 0:01:37]} 8. O-O {[%emt 0:00:31]} Bb7 {[%emt 0:01:13]} 9. Re1 {[%emt 0:00:35]} Ne4 {[%emt 0:04:36]} 10. Bxe7 {[%emt 0:04:33]} Qxe7 {[%emt 0:09:56]} 11. Ne2 {[%emt 0:13:11]} c5 {[%emt 0:13:22]} 12. c3 {[%emt 0:02:50]} Rad8 {[%emt 0:03:07]} 13. Ng3 {[%emt 0:06:59]} Bc6 {[%emt 0:06:40]} 14. Qc2 {[%emt 0:00:49]} f5 {[%emt 0:01:02]} 15. c4 {[%emt 0:17:48]} Rc8 {[%emt 0:06:32]} 16. b3 {[%emt 0:12:11]} Bb7 {[%emt 0:01:50]} 17. Qb2 {[%emt 0:00:38]} g6 {[%emt 0:03:07]} 18. Rac1 {[%emt 0:00:59]} Ng5 {[%emt 0:03:57]} 19. Nxg5 {[%emt 0:02:40]} Qxg5 {[%emt 0:00:14]} 20. cxd5 {[%emt 0:01:17]} exd5 {[%emt 0:00:42]} 21. Bf1 {[%emt 0:05:58]} f4 {[%emt 0:06:54]} 22. exf4 {[%emt 0:00:58]} Rxf4 {[%emt 0:01:17]} 23. dxc5 {[%emt 0:01:05]} bxc5 {[%emt 0:01:12]} 24. Qe2 {[%emt 0:02:45]} Rf7 {[%emt 0:06:03]} 25. Qb5 {[%emt 0:03:07]} Bc6 {[%emt 0:00:56]} 26. Qa6 {[%emt 0:00:36]} Qd8 {[%emt 0:03:18]} 27. Re6 {[%emt 0:04:14]} Nb8 {[%emt 0:01:03]} 28. Qd3 {[%emt 0:01:25]} Bb7 {[%emt 0:02:07]} 29. Rce1 {[%emt 0:01:23]} Qf8 {[%emt 0:01:09]} 30. f3 {[%emt 0:01:25]} Nc6 {[%emt 0:01:32]} 31. R6e3 {[%emt 0:05:55]} Rd7 {[%emt 0:01:12]} 32. Qd2 {[%emt 0:01:12]} a6 {[%emt 0:01:11]} 33. Bd3 {[%emt 0:04:05]} Qf6 {[%emt 0:01:59]} 34. Re6 {[%emt 0:00:09]} Qd4+ {[%emt 0:00:43]} 35. Qe3 {[%emt 0:01:36]} Qxe3+ {[%emt 0:01:01]} 36. R6xe3 {[%emt 0:00:05]} Kf7 {[%emt 0:00:15]} 37. Kf2 {[%emt 0:00:40]} Nd4 {[%emt 0:00:15]} 38. Bb1 {[%emt 0:00:06]} a5 {[%emt 0:00:46]} 39. Nf1 {[%emt 0:00:32]} Ba6 {[%emt 0:00:50]} 40. Nd2 {[%emt 0:00:24]} a4 {[%emt 0:01:39]} 41. bxa4 {[%emt 0:06:08]} Rb8 {[%emt 0:03:15]} 42. Rc3 {[%emt 0:01:03]} Rb2 {[%emt 0:01:02]} 0-1

[Event "94th FRA-ch Veterans 2019"]
[Site "Chartres"]
[Date "2019.08.20"]
[Round "4.4"]
[White "Dubois, Herve"]
[Black "Flachet, Thierry"]
[Result "1/2-1/2"]
[ECO "A12"]
[WhiteElo "1806"]
[BlackElo "2036"]
[Annotator "NA"]
[PlyCount "69"]
[EventDate "2019.08.17"]
[EventType "swiss"]
[EventCountry "FRA"]
[SourceTitle "playchess.com"]
[Source "ChessBase"]
[SourceQuality "1"]
[TimeControl "40/5400+30:1800+30"]

1. c4 {[%emt 0:00:00]} c6 {[%emt 0:00:03]} 2. Nf3 {[%emt 0:00:00]} d5 {[%emt 0:00:25]} 3. g3 {[%emt 0:00:27]} Nf6 {[%emt 0:00:21]} 4. Bg2 {[%emt 0:00:07]} Bf5 {[%emt 0:00:58]} 5. b3 {[%emt 0:02:33]} h6 {[%emt 0:00:48]} 6. Bb2 {[%emt 0:00:23]} e6 {[%emt 0:00:15]} 7. d3 {[%emt 0:00:38]} Be7 {[%emt 0:01:32]} 8. Nbd2 {[%emt 0:00:42]} O-O {[%emt 0:00:28]} 9. O-O {[%emt 0:00:05]} Nbd7 {[%emt 0:00:19]} 10. Re1 {[%emt 0:00:35]} Bh7 {[%emt 0:00:30]} 11. Ne5 {[%emt 0:07:33]} a5 {[%emt 0:13:55]} 12. Ndf3 {[%emt 0:22:53]} Nc5 {[%emt 0:10:31]} 13. Qc1 {[%emt 0:09:10]} Nfd7 {[%emt 0:09:23]} 14. Nxd7 {[%emt 0:01:03]} Qxd7 {[%emt 0:01:53]} 15. Bd4 {[%emt 0:02:49]} b6 {[%emt 0:04:09]} 16. cxd5 {[%emt 0:49:02]} cxd5 {[%emt 0:00:32]} 17. Qb2 {[%emt 0:00:00]} f6 {[%emt 0:00:40]} 18. Bh3 {[%emt 0:00:00]} Qd6 {[%emt 0:04:17]} 19. Bxc5 {[%emt 0:00:00]} bxc5 {[%emt 0:00:09]} 20. e4 {[%emt 0:00:00]} e5 {[%emt 0:05:06]} 21. Nh4 {[%emt 0:00:00]} Rad8 {[%emt 0:18:44]} 22. Qe2 {[%emt 0:00:00]} Kh8 {[%emt 0:10:21]} 23. Nf5 {[%emt 0:00:00]} Qc7 {[%emt 0:00:24]} 24. Rac1 {[%emt 0:00:00]} Rf7 {[%emt 0:00:41]} 25. Nh4 {[%emt 0:00:00]} dxe4 {[%emt 0:02:28]} 26. dxe4 {[%emt 0:00:00]} Rd4 {[%emt 0:01:24]} 27. Be6 {[%emt 0:00:00]} Rf8 {[%emt 0:04:39]} 28. Nf5 {[%emt 0:00:00]} Bxf5 {[%emt 0:03:05]} 29. Bxf5 {[%emt 0:00:00]} Bd6 {[%emt 0:00:09]} 30. Qg4 {[%emt 0:00:00]} Qf7 {[%emt 0:00:09]} 31. Be6 {[%emt 0:00:00]} Qe8 {[%emt 0:00:04]} 32. Bd7 {[%emt 0:01:01]} Qf7 {[%emt 0:00:56]} 33. Be6 {[%emt 0:00:10]} Qe8 {[%emt 0:00:47]} 34. Bd7 {[%emt 0:00:20]} Qf7 {[%emt 0:02:02]} 35. Be6 {[%emt 0:07:59]} 1/2-1/2

[Event "94th FRA-ch Veterans 2019"]
[Site "Chartres"]
[Date "2019.08.20"]
[Round "4.5"]
[White "Guilbert, Jean-Louis"]
[Black "Large, Laurent"]
[Result "0-1"]
[ECO "A68"]
[WhiteElo "1852"]
[BlackElo "2183"]
[Annotator "NA"]
[PlyCount "88"]
[EventDate "2019.08.17"]
[EventType "swiss"]
[EventCountry "FRA"]
[SourceTitle "playchess.com"]
[Source "ChessBase"]
[SourceQuality "1"]
[TimeControl "40/5400+30:1800+30"]

1. d4 {[%emt 0:00:00]} Nf6 {[%emt 0:00:00]} 2. c4 {[%emt 0:00:00]} g6 {[%emt 0:00:00]} 3. Nc3 {[%emt 0:00:00]} Bg7 {[%emt 0:00:11]} 4. e4 {[%emt 0:00:00]} d6 {[%emt 0:00:13]} 5. f4 {[%emt 0:00:00]} c5 {[%emt 0:00:50]} 6. d5 {[%emt 0:00:02]} O-O {[%emt 0:01:14]} 7. Nf3 {[%emt 0:00:07]} e6 {[%emt 0:00:38]} 8. Bd3 {[%emt 0:00:19]} exd5 {[%emt 0:00:52]} 9. cxd5 {[%emt 0:00:06]} a6 {[%emt 0:05:16]} 10. a4 {[%emt 0:06:07]} Bg4 {[%emt 0:02:21]} 11. O-O {[%emt 0:00:34]} Nbd7 {[%emt 0:00:53]} 12. h3 {[%emt 0:01:30]} Bxf3 {[%emt 0:00:39]} 13. Qxf3 {[%emt 0:00:02]} Ne8 {[%emt 0:01:47]} 14. Re1 {[%emt 0:03:54]} Rb8 {[%emt 0:04:22]} 15. Qg3 {[%emt 0:08:18]} Qc7 {[%emt 0:14:38]} 16. a5 {[%emt 0:02:59]} Nef6 {[%emt 0:15:23]} 17. Bd2 {[%emt 0:08:50]} Rfe8 {[%emt 0:05:07]} 18. Nd1 {[%emt 0:08:11]} Nh5 {[%emt 0:05:09]} 19. Qf3 {[%emt 0:02:21]} c4 {[%emt 0:04:55]} 20. Bc2 {[%emt 0:01:30]} Nc5 {[%emt 0:01:11]} 21. g4 {[%emt 0:03:50]} Nf6 {[%emt 0:00:15]} 22. Bc3 {[%emt 0:01:14]} Qe7 {[%emt 0:08:26]} 23. Nf2 {[%emt 0:03:41]} Nfd7 {[%emt 0:01:04]} 24. Bxg7 {[%emt 0:03:41]} Kxg7 {[%emt 0:00:06]} 25. Qc3+ {[%emt 0:00:11]} Qf6 {[%emt 0:00:24]} 26. Qxf6+ {[%emt 0:02:30]} Nxf6 {[%emt 0:00:07]} 27. Rad1 {[%emt 0:01:02]} b6 {[%emt 0:04:11]} 28. Rd4 {[%emt 0:24:39]} bxa5 {[%emt 0:00:29]} 29. Rxc4 {[%emt 0:01:00]} Nxd5 {[%emt 0:02:15]} 30. e5 {[%emt 0:01:50]} Rxb2 {[%emt 0:00:45]} 31. Kf1 {[%emt 0:07:38]} Rb4 {[%emt 0:01:46]} 32. Rxb4 {[%emt 0:04:24]} axb4 {[%emt 0:00:29]} 33. exd6 {[%emt 0:00:21]} Rd8 {[%emt 0:08:41]} 34. Ne4 {[%emt 0:03:59]} Nxe4 {[%emt 0:01:34]} 35. Rxe4 {[%emt 0:00:01]} Rxd6 {[%emt 0:01:22]} 36. Bb3 {[%emt 0:00:58]} a5 {[%emt 0:00:42]} 37. Ke1 {[%emt 0:01:21]} Nc3 {[%emt 0:00:54]} 38. Re7 {[%emt 0:00:41]} Rf6 {[%emt 0:00:19]} 39. f5 {[%emt 0:00:28]} a4 {[%emt 0:02:26]} 40. Be6 {[%emt 0:00:36]} Kf8 {[%emt 0:01:14]} 41. Rb7 {[%emt 0:01:46]} fxe6 {[%emt 0:00:35]} 42. Rxb4 {[%emt 0:00:22]} exf5 {[%emt 0:05:30]} 43. Rc4 {[%emt 0:00:19]} Re6+ {[%emt 0:00:56]} 44. Kf1 {[%emt 0:00:23]} Re3 {[%emt 0:00:35]} 0-1

[Event "94th FRA-ch Veterans 2019"]
[Site "Chartres"]
[Date "2019.08.20"]
[Round "4.6"]
[White "Daurelle, Herve"]
[Black "Derouineau, Paul"]
[Result "1-0"]
[ECO "B54"]
[WhiteElo "2179"]
[BlackElo "1924"]
[Annotator "NA"]
[PlyCount "43"]
[EventDate "2019.08.17"]
[EventType "swiss"]
[EventCountry "FRA"]
[SourceTitle "playchess.com"]
[Source "ChessBase"]
[SourceQuality "1"]
[TimeControl "40/5400+30:1800+30"]

1. e4 {[%emt 0:00:00]} c5 {[%emt 0:00:00]} 2. Nf3 {[%emt 0:00:00]} Nc6 {[%emt 0:00:19]} 3. d4 {[%emt 0:00:00]} cxd4 {[%emt 0:00:19]} 4. Nxd4 {[%emt 0:00:03]} d6 {[%emt 0:00:25]} 5. c4 {[%emt 0:00:18]} e5 {[%emt 0:01:15]} 6. Nc2 {[%emt 0:00:59]} Nf6 {[%emt 0:00:29]} 7. Nc3 {[%emt 0:00:06]} Be7 {[%emt 0:00:37]} 8. Be2 {[%emt 0:00:24]} O-O {[%emt 0:01:23]} 9. O-O {[%emt 0:00:08]} Nd4 {[%emt 0:00:30]} 10. Nxd4 {[%emt 0:00:34]} exd4 {[%emt 0:00:11]} 11. Qxd4 {[%emt 0:00:13]} Nd7 {[%emt 0:00:16]} 12. Bf4 {[%emt 0:02:34]} Qb6 {[%emt 0:09:28]} 13. Qxb6 {[%emt 0:02:35]} Nxb6 {[%emt 0:00:22]} 14. Rad1 {[%emt 0:06:58]} Rd8 {[%emt 0:03:28]} 15. Nb5 {[%emt 0:00:46]} Be6 {[%emt 0:00:25]} 16. b3 {[%emt 0:00:15]} Nc8 {[%emt 0:07:22]} 17. c5 {[%emt 0:03:18]} a6 {[%emt 0:08:54]} 18. Nxd6 {[%emt 0:03:58]} Nxd6 {[%emt 0:02:10]} 19. cxd6 {[%emt 0:00:12]} Bf8 {[%emt 0:00:24]} 20. e5 {[%emt 0:00:12]} Rac8 {[%emt 0:02:36]} 21. Rc1 {[%emt 0:02:42]} f6 {[%emt 0:02:16]} 22. Rxc8 {[%emt 0:01:03]} 1-0

[Event "94th FRA-ch Veterans 2019"]
[Site "Chartres"]
[Date "2019.08.21"]
[Round "5.1"]
[White "Dussol, Pierre"]
[Black "Vareille, Francois"]
[Result "1/2-1/2"]
[ECO "E12"]
[WhiteElo "2102"]
[BlackElo "2423"]
[Annotator "NA"]
[PlyCount "101"]
[EventDate "2019.08.17"]
[EventType "swiss"]
[EventCountry "FRA"]
[SourceTitle "playchess.com"]
[Source "ChessBase"]
[SourceQuality "1"]
[TimeControl "40/5400+30:1800+30"]

1. d4 {[%emt 0:00:00]} Nf6 {[%emt 0:00:07]} 2. c4 {[%emt 0:01:11]} e6 {[%emt 0:00:43]} 3. Nf3 {[%emt 0:01:02]} b6 {[%emt 0:00:18]} 4. a3 {[%emt 0:02:48]} Bb7 {[%emt 0:01:42]} 5. Nc3 {[%emt 0:00:33]} d5 {[%emt 0:00:35]} 6. cxd5 {[%emt 0:02:03]} Nxd5 {[%emt 0:00:17]} 7. Qc2 {[%emt 0:02:28]} Be7 {[%emt 0:03:23]} 8. e4 {[%emt 0:10:52]} Nxc3 {[%emt 0:01:47]} 9. bxc3 {[%emt 0:00:12]} O-O {[%emt 0:00:25]} 10. Bd3 {[%emt 0:02:16]} c5 {[%emt 0:00:37]} 11. O-O {[%emt 0:01:45]} Qc7 {[%emt 0:04:14]} 12. Qe2 {[%emt 0:02:54]} Nd7 {[%emt 0:08:04]} 13. Bb2 {[%emt 0:03:59]} Nf6 {[%emt 0:00:38]} 14. Ne5 {[%emt 0:04:39]} Nd7 {[%emt 0:04:04]} 15. Ng4 {[%emt 0:13:17]} Nf6 {[%emt 0:10:07]} 16. Ne5 {[%emt 0:04:03]} b5 {[%emt 0:09:41]} 17. f4 {[%emt 0:09:51]} g6 {[%emt 0:05:14]} 18. Rae1 {[%emt 0:04:03]} a6 {[%emt 0:11:05]} 19. Qf3 {[%emt 0:03:51]} c4 {[%emt 0:01:59]} 20. Bb1 {[%emt 0:01:38]} Ne8 {[%emt 0:00:16]} 21. Qh3 {[%emt 0:03:10]} f5 {[%emt 0:01:14]} 22. g4 {[%emt 0:06:18]} Nd6 {[%emt 0:01:14]} 23. gxf5 {[%emt 0:03:24]} exf5 {[%emt 0:00:55]} 24. exf5 {[%emt 0:01:37]} Nxf5 {[%emt 0:00:51]} 25. Ng4 {[%emt 0:02:17]} Bd6 {[%emt 0:07:22]} 26. Re6 {[%emt 0:03:04]} Bxf4 {[%emt 0:05:43]} 27. Bxf5 {[%emt 0:03:02]} gxf5 {[%emt 0:02:27]} 28. Ne5 {[%emt 0:02:27]} Bxe5 {[%emt 0:01:31]} 29. Rxe5 {[%emt 0:00:08]} Kh8 {[%emt 0:03:27]} 30. Kf2 {[%emt 0:00:36]} Rg8 {[%emt 0:00:31]} 31. Bc1 {[%emt 0:01:56]} Bg2 {[%emt 0:00:36]} 32. Qh4 {[%emt 0:00:29]} Qc6 {[%emt 0:04:45]} 33. d5 {[%emt 0:00:58]} Bxd5 {[%emt 0:00:30]} 34. Qd4 {[%emt 0:00:46]} Rg2+ {[%emt 0:02:50]} 35. Ke1 {[%emt 0:00:10]} Kg8 {[%emt 0:01:15]} 36. Qxd5+ {[%emt 0:00:43]} Qxd5 {[%emt 0:00:02]} 37. Rxd5 {[%emt 0:00:09]} Rxh2 {[%emt 0:00:42]} 38. Rg1+ {[%emt 0:01:36]} Kf7 {[%emt 0:00:40]} 39. Rxf5+ {[%emt 0:00:19]} Ke6 {[%emt 0:00:12]} 40. Rf2 {[%emt 0:00:50]} Rxf2 {[%emt 0:01:20]} 41. Kxf2 {[%emt 0:30:14]} Rd8 {[%emt 0:30:33]} 42. Ke2 {[%emt 0:02:16]} Rd3 {[%emt 0:05:48]} 43. Bd2 {[%emt 0:00:00]} Rh3 {[%emt 0:00:00]} 44. Rg7 {[%emt 0:00:00]} Rh2+ {[%emt 0:00:00]} 45. Kd1 {[%emt 0:00:00]} h5 {[%emt 0:00:00]} 46. Ra7 {[%emt 0:00:00]} Rh1+ {[%emt 0:00:00]} 47. Ke2 {[%emt 0:00:00]} Rh2+ {[%emt 0:00:00]} 48. Ke3 {[%emt 0:00:00]} Rh3+ {[%emt 0:00:00]} 49. Ke4 {[%emt 0:00:00]} Rh4+ {[%emt 0:00:00]} 50. Bf4 {[%emt 0:00:00]} Rh1 {[%emt 0:00:00]} 51. Rxa6+ {[%emt 0:00:00]} 1/2-1/2

[Event "94th FRA-ch Veterans 2019"]
[Site "Chartres"]
[Date "2019.08.21"]
[Round "5.2"]
[White "Seknadje-Askenazi, Jose"]
[Black "Goldenberg, Richard"]
[Result "0-1"]
[ECO "B06"]
[WhiteElo "1894"]
[BlackElo "2219"]
[Annotator "NA"]
[PlyCount "106"]
[EventDate "2019.08.17"]
[EventType "swiss"]
[EventCountry "FRA"]
[SourceTitle "playchess.com"]
[Source "ChessBase"]
[SourceQuality "1"]
[TimeControl "40/5400+30:1800+30"]

1. e4 {[%emt 0:01:00]} g6 {[%emt 0:00:00]} 2. d4 {[%emt 0:00:10]} Bg7 {[%emt 0:00:00]} 3. Nf3 {[%emt 0:00:09]} d6 {[%emt 0:02:04]} 4. h3 {[%emt 0:00:35]} Nd7 {[%emt 0:01:47]} 5. Bc4 {[%emt 0:01:54]} e6 {[%emt 0:00:19]} 6. Nc3 {[%emt 0:00:29]} a6 {[%emt 0:02:11]} 7. a4 {[%emt 0:00:08]} Ne7 {[%emt 0:01:38]} 8. Be3 {[%emt 0:00:42]} b6 {[%emt 0:01:04]} 9. O-O {[%emt 0:00:29]} Bb7 {[%emt 0:00:59]} 10. Qd2 {[%emt 0:00:17]} h6 {[%emt 0:11:22]} 11. Rfe1 {[%emt 0:01:19]} Nf6 {[%emt 0:02:25]} 12. d5 {[%emt 0:02:28]} e5 {[%emt 0:02:12]} 13. Rad1 {[%emt 0:06:14]} g5 {[%emt 0:10:12]} 14. Nh2 {[%emt 0:01:49]} Ng6 {[%emt 0:00:37]} 15. g3 {[%emt 0:00:32]} Bc8 {[%emt 0:02:48]} 16. Bf1 {[%emt 0:00:12]} Bd7 {[%emt 0:00:43]} 17. f3 {[%emt 0:03:26]} Qc8 {[%emt 0:01:06]} 18. Qg2 {[%emt 0:00:17]} Nh5 {[%emt 0:03:32]} 19. Rd2 {[%emt 0:09:21]} O-O {[%emt 0:00:59]} 20. Rf2 {[%emt 0:03:26]} Kh8 {[%emt 0:02:21]} 21. Kh1 {[%emt 0:03:20]} Qe8 {[%emt 0:05:38]} 22. b3 {[%emt 0:04:20]} b5 {[%emt 0:03:07]} 23. a5 {[%emt 0:00:11]} Kh7 {[%emt 0:11:50]} 24. b4 {[%emt 0:00:44]} Qe7 {[%emt 0:05:59]} 25. Ne2 {[%emt 0:01:09]} Rg8 {[%emt 0:03:12]} 26. Ng4 {[%emt 0:03:18]} Raf8 {[%emt 0:01:12]} 27. Qh2 {[%emt 0:01:43]} f5 {[%emt 0:01:14]} 28. exf5 {[%emt 0:00:09]} Rxf5 {[%emt 0:00:35]} 29. Ng1 {[%emt 0:00:22]} Qf7 {[%emt 0:06:48]} 30. Rd1 {[%emt 0:04:15]} Bc8 {[%emt 0:01:34]} 31. Bd3 {[%emt 0:00:08]} Qxd5 {[%emt 0:01:34]} 32. Rfd2 {[%emt 0:02:23]} Qf7 {[%emt 0:01:18]} 33. Bxf5 {[%emt 0:00:32]} Qxf5 {[%emt 0:00:30]} 34. Qf2 {[%emt 0:03:45]} Bb7 {[%emt 0:00:25]} 35. Kh2 {[%emt 0:00:17]} Rf8 {[%emt 0:00:32]} 36. Rf1 {[%emt 0:02:02]} Rf7 {[%emt 0:03:12]} 37. c3 {[%emt 0:14:44]} e4 {[%emt 0:03:10]} 38. Bd4 {[%emt 0:00:45]} exf3 {[%emt 0:00:20]} 39. Bxg7 {[%emt 0:02:33]} Nxg7 {[%emt 0:00:35]} 40. Ne3 {[%emt 0:01:12]} Qe5 {[%emt 0:01:18]} 41. Rd4 {[%emt 0:31:42]} h5 {[%emt 0:33:07]} 42. Re1 {[%emt 0:01:48]} Ne6 {[%emt 0:00:00]} 43. Nf1 {[%emt 0:00:00]} Qf5 {[%emt 0:00:00]} 44. Ne3 {[%emt 0:00:00]} Qe5 {[%emt 0:00:00]} 45. Nf1 {[%emt 0:00:00]} Qf6 {[%emt 0:00:00]} 46. Rd3 {[%emt 0:00:00]} Ne5 {[%emt 0:00:00]} 47. Rde3 {[%emt 0:00:00]} g4 {[%emt 0:00:00]} 48. h4 {[%emt 0:00:00]} Ng7 {[%emt 0:00:00]} 49. Nd2 {[%emt 0:00:00]} Nf5 {[%emt 0:00:00]} 50. Ne4 {[%emt 0:00:00]} Bxe4 {[%emt 0:00:22]} 51. Rxe4 {[%emt 0:00:00]} Nd3 {[%emt 0:00:25]} 52. Qd2 {[%emt 0:00:00]} Nxe1 {[%emt 0:00:20]} 53. Qxe1 {[%emt 0:00:00]} Re7 {[%emt 0:00:58]} 0-1

[Event "94th FRA-ch Veterans 2019"]
[Site "Chartres"]
[Date "2019.08.21"]
[Round "5.3"]
[White "Large, Laurent"]
[Black "Dubois, Herve"]
[Result "1-0"]
[ECO "D05"]
[WhiteElo "2183"]
[BlackElo "1806"]
[Annotator "NA"]
[PlyCount "37"]
[EventDate "2019.08.17"]
[EventType "swiss"]
[EventCountry "FRA"]
[SourceTitle "playchess.com"]
[Source "ChessBase"]
[SourceQuality "1"]
[TimeControl "40/5400+30:1800+30"]

1. d4 {[%emt 0:00:00]} Nf6 {[%emt 0:00:00]} 2. Nf3 {[%emt 0:00:00]} e6 {[%emt 0:00:04]} 3. e3 {[%emt 0:00:09]} b6 {[%emt 0:00:41]} 4. Bd3 {[%emt 0:00:19]} Bb7 {[%emt 0:00:54]} 5. O-O {[%emt 0:00:51]} Be7 {[%emt 0:00:59]} 6. Nbd2 {[%emt 0:01:08]} d5 {[%emt 0:00:24]} 7. Ne5 {[%emt 0:02:24]} c5 {[%emt 0:03:24]} 8. c3 {[%emt 0:02:20]} O-O {[%emt 0:00:54]} 9. f4 {[%emt 0:01:34]} Nbd7 {[%emt 0:01:39]} 10. Qf3 {[%emt 0:00:37]} h6 {[%emt 0:27:38]} 11. g4 {[%emt 0:08:03]} Rc8 {[%emt 0:05:55]} 12. Rf2 {[%emt 0:26:37]} Ne4 {[%emt 0:13:13]} 13. Nxe4 {[%emt 0:04:30]} dxe4 {[%emt 0:01:11]} 14. Bxe4 {[%emt 0:00:05]} Bxe4 {[%emt 0:00:07]} 15. Qxe4 {[%emt 0:00:07]} f5 {[%emt 0:00:17]} 16. gxf5 {[%emt 0:01:51]} exf5 {[%emt 0:00:10]} 17. Qd5+ {[%emt 0:00:37]} Kh8 {[%emt 0:08:09]} 18. Qxd7 {[%emt 0:01:17]} Bh4 {[%emt 0:02:39]} 19. Qxd8 {[%emt 0:02:33]} 1-0

[Event "94th FRA-ch Veterans 2019"]
[Site "Chartres"]
[Date "2019.08.21"]
[Round "5.4"]
[White "Renault, Nicolas"]
[Black "Daurelle, Herve"]
[Result "0-1"]
[ECO "B22"]
[WhiteElo "1822"]
[BlackElo "2179"]
[Annotator "NA"]
[PlyCount "80"]
[EventDate "2019.08.17"]
[EventType "swiss"]
[EventCountry "FRA"]
[SourceTitle "playchess.com"]
[Source "ChessBase"]
[SourceQuality "1"]
[TimeControl "40/5400+30:1800+30"]

1. e4 {[%emt 0:00:00]} c5 {[%emt 0:00:00]} 2. d4 {[%emt 0:00:00]} cxd4 {[%emt 0:00:00]} 3. c3 {[%emt 0:00:00]} Nf6 {[%emt 0:00:03]} 4. e5 {[%emt 0:00:00]} Nd5 {[%emt 0:00:05]} 5. Nf3 {[%emt 0:00:00]} Nc6 {[%emt 0:00:23]} 6. Bc4 {[%emt 0:00:09]} Nb6 {[%emt 0:00:37]} 7. Bb3 {[%emt 0:00:21]} d5 {[%emt 0:00:38]} 8. exd6 {[%emt 0:00:05]} Qxd6 {[%emt 0:00:10]} 9. O-O {[%emt 0:01:49]} Be6 {[%emt 0:01:41]} 10. Na3 {[%emt 0:00:06]} Bxb3 {[%emt 0:01:34]} 11. axb3 {[%emt 0:03:31]} a6 {[%emt 0:11:48]} 12. Re1 {[%emt 0:11:30]} e6 {[%emt 0:02:15]} 13. Nxd4 {[%emt 0:16:57]} Nxd4 {[%emt 0:02:51]} 14. Be3 {[%emt 0:00:52]} Nf5 {[%emt 0:26:36]} 15. Qxd6 {[%emt 0:01:22]} Bxd6 {[%emt 0:00:14]} 16. Bxb6 {[%emt 0:00:08]} Rc8 {[%emt 0:13:11]} 17. Nc4 {[%emt 0:03:24]} Bc7 {[%emt 0:11:37]} 18. Rad1 Bxb6 {[%emt 0:00:30]} 19. Nxb6 Rd8 {[%emt 0:00:30]} 20. Rxd8+ Kxd8 {[%emt 0:00:30]} 21. c4 Kc7 {[%emt 0:00:30]} 22. Na4 Rd8 {[%emt 0:00:30]} 23. Kf1 Rd2 {[%emt 0:00:30]} 24. c5 Nd4 {[%emt 0:00:30]} 25. b4 Nc2 {[%emt 0:00:30]} 26. Re4 Rd1+ {[%emt 0:00:30]} 27. Ke2 Re1+ {[%emt 0:00:30]} 28. Kd3 Rxe4 {[%emt 0:00:30]} 29. Kxe4 Nxb4 {[%emt 0:00:30]} 30. Kd4 Nd5 {[%emt 0:00:30]} 31. b3 Kc6 {[%emt 0:00:30]} 32. g3 Nf6 {[%emt 0:00:30]} 33. f3 Nd7 {[%emt 0:00:30]} 34. f4 Kb5 {[%emt 0:00:30]} 35. g4 Kb4 {[%emt 0:00:30]} 36. h4 Kxb3 {[%emt 0:00:30]} 37. Nc3 Nxc5 {[%emt 0:00:30]} 38. h5 h6 {[%emt 0:00:30]} 39. Ne2 Nd7 {[%emt 0:00:30]} 40. Nc3 Nf6 {[%emt 0:00:30]} 0-1